[Event "*** Titled Tuesday 3|2 Blitz"]
[Site "Chess.com"]
[Date "2015.09.01"]
[Round "2"]
[White "AnthonyWirig"]
[Black "rhungaski"]
[Result "1/2-1/2"]
[WhiteElo "2505"]
[BlackElo "2463"]
[TimeControl "180+2"]
[EndTime "11:23:04 PDT"]
[Termination "Game drawn by repetition"]

1. d4 {[%clk 0:03:01.9]} 1... d5 {[%clk 0:03:00]} 2. Nf3 {[%clk 0:03:01.4]} 2...
Nf6 {[%clk 0:02:59.9]} 3. c4 {[%clk 0:03:02.6]} 3... dxc4 {[%clk 0:03:01.8]} 4.
e3 {[%clk 0:03:03.8]} 4... a6 {[%clk 0:03:02.7]} 5. Bxc4 {[%clk 0:03:04.5]} 5...
e6 {[%clk 0:03:04]} 6. O-O {[%clk 0:03:04.8]} 6... c5 {[%clk 0:03:05]} 7. dxc5
{[%clk 0:03:04.6]} 7... Bxc5 {[%clk 0:03:06.9]} 8. Qxd8+ {[%clk 0:03:05]} 8...
Kxd8 {[%clk 0:03:08.8]} 9. Nbd2 {[%clk 0:03:05.9]} 9... Ke7 {[%clk 0:03:06]} 10.
Nb3 {[%clk 0:03:06.1]} 10... Bd6 {[%clk 0:03:05.9]} 11. Be2 {[%clk 0:03:03.5]}
11... Bd7 {[%clk 0:02:45]} 12. Na5 {[%clk 0:02:47.2]} 12... b6 {[%clk
0:02:24.9]} 13. Nc4 {[%clk 0:02:46.1]} 13... Bb5 {[%clk 0:02:09.4]} 14. Nd4
{[%clk 0:02:32.7]} 14... Bxc4 {[%clk 0:02:06.6]} 15. Bxc4 {[%clk 0:02:34.6]}
15... Rc8 {[%clk 0:02:04.1]} 16. Be2 {[%clk 0:02:33.6]} 16... Ra7 {[%clk
0:01:52.7]} 17. Bd2 {[%clk 0:02:22.4]} 17... g6 {[%clk 0:01:43.7]} 18. Rfc1
{[%clk 0:02:15.7]} 18... Rac7 {[%clk 0:01:44.9]} 19. Rxc7+ {[%clk 0:02:15.2]}
19... Rxc7 {[%clk 0:01:46.8]} 20. Rc1 {[%clk 0:02:16.1]} 20... Rxc1+ {[%clk
0:01:47.4]} 21. Bxc1 {[%clk 0:02:18]} 21... e5 {[%clk 0:01:48.5]} 22. Nc2 {[%clk
0:02:15.2]} 22... b5 {[%clk 0:01:46.2]} 23. Kf1 {[%clk 0:02:13.2]} 23... Nc6
{[%clk 0:01:47.2]} 24. h3 {[%clk 0:02:11.6]} 24... e4 {[%clk 0:01:31.1]} 25. a4
{[%clk 0:01:59.4]} 25... bxa4 {[%clk 0:00:51.6]} 26. Bxa6 {[%clk 0:01:59.3]}
26... Nd5 {[%clk 0:00:45.2]} 27. Bb5 {[%clk 0:01:51.5]} 27... Ncb4 {[%clk
0:00:44.7]} 28. Nxb4 {[%clk 0:01:41.9]} 28... Nxb4 {[%clk 0:00:46.6]} 29. Ke2
{[%clk 0:01:31.9]} 29... Be5 {[%clk 0:00:29.3]} 30. f3 {[%clk 0:01:26.5]} 30...
exf3+ {[%clk 0:00:26.4]} 31. gxf3 {[%clk 0:01:27.3]} 31... Na2 {[%clk
0:00:27.8]} 32. Kd2 {[%clk 0:01:11.6]} 32... f5 {[%clk 0:00:19.6]} 33. Bxa4
{[%clk 0:01:08.1]} 33... g5 {[%clk 0:00:12.9]} 34. b3 {[%clk 0:00:53]} 34...
Nxc1 {[%clk 0:00:12.6]} 35. Kxc1 {[%clk 0:00:54.9]} 35... Bd6 {[%clk 0:00:13.3]}
36. Kc2 {[%clk 0:00:55.4]} 36... Bc5 {[%clk 0:00:14.4]} 37. Kd3 {[%clk
0:00:56.6]} 37... h5 {[%clk 0:00:15.2]} 38. Bc6 {[%clk 0:00:51.5]} 38... g4
{[%clk 0:00:15.1]} 39. fxg4 {[%clk 0:00:52.6]} 39... fxg4 {[%clk 0:00:15.2]} 40.
hxg4 {[%clk 0:00:51.1]} 40... hxg4 {[%clk 0:00:17.1]} 41. Bg2 {[%clk 0:00:43.8]}
41... g3 {[%clk 0:00:16.4]} 42. e4 {[%clk 0:00:39]} 42... Kd6 {[%clk 0:00:16.2]}
43. Kc4 {[%clk 0:00:40.9]} 43... Bf2 {[%clk 0:00:16.2]} 44. Kb5 {[%clk
0:00:37.3]} 44... Bd4 {[%clk 0:00:14]} 45. b4 {[%clk 0:00:37.6]} 45... Be3
{[%clk 0:00:13.6]} 46. Bf3 {[%clk 0:00:37.9]} 46... Bd4 {[%clk 0:00:14.2]} 47.
Bh1 {[%clk 0:00:39.5]} 47... Be5 {[%clk 0:00:14.6]} 48. Bg2 {[%clk 0:00:40]}
48... Bd4 {[%clk 0:00:15.6]} 49. Kc4 {[%clk 0:00:38.9]} 49... Be3 {[%clk
0:00:14.9]} 50. Kd3 {[%clk 0:00:39.8]} 50... Bf2 {[%clk 0:00:15.1]} 51. Ke2
{[%clk 0:00:40]} 51... Bd4 {[%clk 0:00:14]} 52. Kd3 {[%clk 0:00:39.7]} 52... Bf2
{[%clk 0:00:14.9]} 53. Kc3 {[%clk 0:00:40.6]} 53... Be1+ {[%clk 0:00:15.1]} 54.
Kc4 {[%clk 0:00:41.8]} 54... Bf2 {[%clk 0:00:17]} 55. Kb5 {[%clk 0:00:42.1]}
55... Bd4 {[%clk 0:00:16.8]} 56. Ka6 {[%clk 0:00:43.3]} 56... Be3 {[%clk
0:00:16.7]} 57. b5 {[%clk 0:00:45]} 57... Kc7 {[%clk 0:00:17.9]} 58. Ka5 {[%clk
0:00:42.9]} 58... Bd2+ {[%clk 0:00:15.9]} 59. Ka6 {[%clk 0:00:43.8]} 59... Be3
{[%clk 0:00:16]} 60. Bf3 {[%clk 0:00:45.5]} 60... Bd4 {[%clk 0:00:16.6]} 61. Ka5
{[%clk 0:00:46]} 61... Bb6+ {[%clk 0:00:17.2]} 62. Kb4 {[%clk 0:00:47.2]} 62...
Kd6 {[%clk 0:00:17.2]} 63. Kc4 {[%clk 0:00:46.6]} 63... Ke5 {[%clk 0:00:18.2]}
64. Bg2 {[%clk 0:00:47.9]} 64... Kd6 {[%clk 0:00:18.8]} 65. Kd3 {[%clk
0:00:49.1]} 65... Ke5 {[%clk 0:00:19.8]} 66. Ke2 {[%clk 0:00:50.3]} 66... Kf4
{[%clk 0:00:19.5]} 67. Kd3 {[%clk 0:00:51.1]} 67... Ke5 {[%clk 0:00:20.6]} 68.
Kc4 {[%clk 0:00:52.7]} 68... Kd6 {[%clk 0:00:21.6]} 69. Bf1 {[%clk 0:00:52.4]}
69... Ke5 {[%clk 0:00:21.3]} 70. Bg2 {[%clk 0:00:54]} 70... Kd6 {[%clk
0:00:22.5]} 71. Kd3 {[%clk 0:00:55.1]} 71... Ke5 {[%clk 0:00:23.7]} 72. Kd2
{[%clk 0:00:56.9]} 72... Kf4 {[%clk 0:00:23.9]} 73. Ke2 {[%clk 0:00:58.6]} 73...
Bc5 {[%clk 0:00:23.3]} 74. Bh1 {[%clk 0:00:58.6]} 74... Bb6 {[%clk 0:00:24.1]}
75. Bg2 {[%clk 0:00:59.9]} 75... Bc5 {[%clk 0:00:25.3]} 76. Kd3 {[%clk
0:01:01.1]} 76... Bb6 {[%clk 0:00:25]} 77. Ke2 {[%clk 0:01:01.5]} 1/2-1/2

[Event "*** Titled Tuesday 3|2 Blitz"]
[Site "Chess.com"]
[Date "2015.09.01"]
[Round "2"]
[White "Tobi-Wan-Kenobi"]
[Black "MFBerna"]
[Result "1-0"]
[WhiteElo "2399"]
[BlackElo "2117"]
[TimeControl "180+2"]
[EndTime "11:24:29 PDT"]
[Termination "Tobi-Wan-Kenobi won on time"]

1. e4 {[%clk 0:03:01.6]} 1... e5 {[%clk 0:02:48.5]} 2. Nf3 {[%clk 0:02:59.6]}
2... Nc6 {[%clk 0:02:45.5]} 3. Bb5 {[%clk 0:03:00.1]} 3... Nf6 {[%clk
0:02:43.8]} 4. d3 {[%clk 0:02:59.2]} 4... d6 {[%clk 0:02:44.4]} 5. O-O {[%clk
0:02:57.9]} 5... Be7 {[%clk 0:02:43.3]} 6. Re1 {[%clk 0:02:54.8]} 6... O-O
{[%clk 0:02:44.1]} 7. c3 {[%clk 0:02:55.7]} 7... Bd7 {[%clk 0:02:44.4]} 8. Ba4
{[%clk 0:02:52.2]} 8... Re8 {[%clk 0:02:24]} 9. Nbd2 {[%clk 0:02:52]} 9... Bf8
{[%clk 0:02:23.7]} 10. Nf1 {[%clk 0:02:52.9]} 10... h6 {[%clk 0:02:25.2]} 11.
Ng3 {[%clk 0:02:53.5]} 11... g6 {[%clk 0:02:26.3]} 12. h3 {[%clk 0:02:47]} 12...
Bg7 {[%clk 0:02:27.3]} 13. d4 {[%clk 0:02:39.1]} 13... Qe7 {[%clk 0:02:20.9]}
14. Bb3 {[%clk 0:02:28.7]} 14... Na5 {[%clk 0:02:19.5]} 15. Bc2 {[%clk
0:02:28.3]} 15... c5 {[%clk 0:02:20.2]} 16. d5 {[%clk 0:02:24.4]} 16... b5
{[%clk 0:02:21]} 17. b3 {[%clk 0:02:18.9]} 17... Nb7 {[%clk 0:02:19]} 18. Bd2
{[%clk 0:02:11.7]} 18... a5 {[%clk 0:02:16.1]} 19. c4 {[%clk 0:02:03.6]} 19...
bxc4 {[%clk 0:02:08.9]} 20. bxc4 {[%clk 0:02:03.2]} 20... Reb8 {[%clk
0:02:09.5]} 21. Ba4 {[%clk 0:01:59.2]} 21... Qe8 {[%clk 0:02:10.4]} 22. Bxd7
{[%clk 0:01:58.9]} 22... Qxd7 {[%clk 0:02:12.3]} 23. Rb1 {[%clk 0:01:57.1]}
23... Ne8 {[%clk 0:02:12.4]} 24. Qc2 {[%clk 0:01:56.5]} 24... a4 {[%clk
0:02:12.9]} 25. Ne2 {[%clk 0:01:56]} 25... Nc7 {[%clk 0:02:12.6]} 26. Rb6 {[%clk
0:01:37.7]} 26... Nd8 {[%clk 0:01:58.1]} 27. Reb1 {[%clk 0:01:32.9]} 27... Rxb6
{[%clk 0:01:56.7]} 28. Rxb6 {[%clk 0:01:34.8]} 28... Na6 {[%clk 0:01:53.5]} 29.
a3 {[%clk 0:01:31.3]} 29... Qc7 {[%clk 0:01:50.2]} 30. Ba5 {[%clk 0:01:15.2]}
30... Qd7 {[%clk 0:01:48]} 31. Be1 {[%clk 0:01:05.9]} 31... Bf8 {[%clk
0:01:45.9]} 32. Nc3 {[%clk 0:01:03.7]} 32... Nc7 {[%clk 0:01:42.3]} 33. Nb5
{[%clk 0:01:01.5]} 33... Nxb5 {[%clk 0:01:36.6]} 34. Rxb5 {[%clk 0:01:00.5]}
34... Nb7 {[%clk 0:01:31.2]} 35. Nd2 {[%clk 0:00:59.7]} 35... Ra5 {[%clk
0:01:19]} 36. Rb1 {[%clk 0:00:43.7]} 36... Be7 {[%clk 0:01:14.6]} 37. Rb2 {[%clk
0:00:44.3]} 37... Ra7 {[%clk 0:01:11.1]} 38. Nb1 {[%clk 0:00:44.4]} 38... Bd8
{[%clk 0:01:08.2]} 39. Nc3 {[%clk 0:00:44]} 39... Na5 {[%clk 0:00:59.3]} 40. Nb5
{[%clk 0:00:43.1]} 40... Rb7 {[%clk 0:00:42.6]} 41. Qxa4 {[%clk 0:00:43.2]}
41... Rb8 {[%clk 0:00:22.2]} 42. Qc2 {[%clk 0:00:38.3]} 42... Ra8 {[%clk
0:00:14]} 43. Bd2 {[%clk 0:00:38.8]} 43... Kg7 {[%clk 0:00:15]} 44. Qc1 {[%clk
0:00:37.9]} 44... h5 {[%clk 0:00:16.4]} 45. Bh6+ {[%clk 0:00:37.5]} 45... Kh7
{[%clk 0:00:16.9]} 46. Bd2 {[%clk 0:00:39.4]} 46... Nb7 {[%clk 0:00:17.5]} 47.
Rb3 {[%clk 0:00:33.9]} 47... Ba5 {[%clk 0:00:17.7]} 48. Rf3 {[%clk 0:00:34.7]}
48... Bxd2 {[%clk 0:00:17.8]} 49. Qxd2 {[%clk 0:00:36.6]} 49... Qe7 {[%clk
0:00:14.7]} 50. g3 {[%clk 0:00:30.3]} 50... Ra4 {[%clk 0:00:15.5]} 51. Qc2
{[%clk 0:00:29.7]} 51... Ra8 {[%clk 0:00:13.8]} 52. Kg2 {[%clk 0:00:30.7]} 52...
Na5 {[%clk 0:00:15.1]} 53. g4 {[%clk 0:00:28.3]} 53... Qh4 {[%clk 0:00:12.9]}
54. Rg3 {[%clk 0:00:26.8]} 54... Nb7 {[%clk 0:00:12.5]} 55. Qd3 {[%clk
0:00:25.5]} 55... Ra4 {[%clk 0:00:12.3]} 56. Qf3 {[%clk 0:00:23]} 56... Kg7
{[%clk 0:00:12.7]} 57. Qb3 {[%clk 0:00:19]} 57... Ra8 {[%clk 0:00:11.6]} 58. Nc7
{[%clk 0:00:19.4]} 58... Rb8 {[%clk 0:00:11.1]} 59. Na6 {[%clk 0:00:19.3]} 59...
Rf8 {[%clk 0:00:06.7]} 60. Qxb7 {[%clk 0:00:19.1]} 60... Qf6 {[%clk 0:00:06.3]}
61. gxh5 {[%clk 0:00:19]} 61... Qf4 {[%clk 0:00:06.2]} 62. hxg6 {[%clk
0:00:19.3]} 62... Qxe4+ {[%clk 0:00:07.4]} 63. Kh2 {[%clk 0:00:20.8]} 63... Qf4
{[%clk 0:00:05]} 64. gxf7+ {[%clk 0:00:20.8]} 64... Kh7 {[%clk 0:00:06.9]} 65.
Qb1+ {[%clk 0:00:21.5]} 65... Kh8 {[%clk 0:00:06]} 66. Qe1 {[%clk 0:00:20.2]}
66... Qxc4 {[%clk 0:00:05.8]} 67. Qe3 {[%clk 0:00:18.6]} 67... Qf4 {[%clk
0:00:04.3]} 68. Qxf4 {[%clk 0:00:18.9]} 68... exf4 {[%clk 0:00:06.2]} 69. Rg8+
{[%clk 0:00:20.2]} 69... Rxg8 {[%clk 0:00:07.1]} 70. fxg8=Q+ {[%clk 0:00:22.1]}
70... Kxg8 {[%clk 0:00:09]} 71. Kg2 {[%clk 0:00:22.8]} 71... c4 {[%clk
0:00:10.4]} 72. Nb4 {[%clk 0:00:22.9]} 72... Kf7 {[%clk 0:00:10.1]} 73. Nc2
{[%clk 0:00:23.9]} 73... Kf6 {[%clk 0:00:12]} 74. Kf3 {[%clk 0:00:25.8]} 74...
Ke5 {[%clk 0:00:13.5]} 75. h4 {[%clk 0:00:27.7]} 75... Kxd5 {[%clk 0:00:15]} 76.
h5 {[%clk 0:00:29.6]} 76... Ke5 {[%clk 0:00:16.4]} 77. a4 {[%clk 0:00:29.8]}
77... d5 {[%clk 0:00:16.9]} 78. h6 {[%clk 0:00:30.9]} 78... d4 {[%clk
0:00:18.6]} 79. h7 {[%clk 0:00:30.6]} 1-0

[Event "*** Titled Tuesday 3|2 Blitz"]
[Site "Chess.com"]
[Date "2015.09.01"]
[Round "3"]
[White "MITerryble"]
[Black "HZMC92"]
[Result "1-0"]
[WhiteElo "2569"]
[BlackElo "2272"]
[TimeControl "180+2"]
[EndTime "11:29:06 PDT"]
[Termination "MITerryble won by resignation"]

1. d4 {[%clk 0:03:01.9]} 1... d5 {[%clk 0:03:00.5]} 2. Nf3 {[%clk 0:03:03.1]}
2... Nf6 {[%clk 0:02:55.4]} 3. c4 {[%clk 0:03:04.1]} 3... e6 {[%clk 0:02:55.9]}
4. Nc3 {[%clk 0:03:04.1]} 4... c6 {[%clk 0:02:57.3]} 5. Bg5 {[%clk 0:03:04.8]}
5... Be7 {[%clk 0:02:58.3]} 6. e3 {[%clk 0:03:05.8]} 6... O-O {[%clk 0:02:59.6]}
7. Qc2 {[%clk 0:03:06.4]} 7... Nbd7 {[%clk 0:03:01]} 8. cxd5 {[%clk 0:03:06.1]}
8... exd5 {[%clk 0:03:01.9]} 9. Bd3 {[%clk 0:03:07.2]} 9... Re8 {[%clk
0:03:00.7]} 10. Ne5 {[%clk 0:03:07.6]} 10... g6 {[%clk 0:03:02]} 11. f4 {[%clk
0:03:07.7]} 11... Nf8 {[%clk 0:03:03]} 12. O-O {[%clk 0:03:07.7]} 12... Ne6
{[%clk 0:03:04.2]} 13. Bh4 {[%clk 0:03:07.8]} 13... Ng7 {[%clk 0:03:05.2]} 14.
Rae1 {[%clk 0:03:06]} 14... Bf5 {[%clk 0:03:05.1]} 15. h3 {[%clk 0:02:55]} 15...
Bxd3 {[%clk 0:03:05.7]} 16. Qxd3 {[%clk 0:02:56]} 16... Ne4 {[%clk 0:03:06.5]}
17. Bxe7 {[%clk 0:02:56.2]} 17... Qxe7 {[%clk 0:03:07.8]} 18. Nxe4 {[%clk
0:02:57.7]} 18... dxe4 {[%clk 0:03:09.2]} 19. Qb3 {[%clk 0:02:59.1]} 19... Rab8
{[%clk 0:03:01.8]} 20. g4 {[%clk 0:02:56.7]} 20... Qe6 {[%clk 0:03:02.4]} 21. f5
{[%clk 0:02:33.7]} 21... Qxb3 {[%clk 0:03:02.9]} 22. axb3 {[%clk 0:02:35.6]}
22... Rbd8 {[%clk 0:02:41.4]} 23. fxg6 {[%clk 0:02:20.3]} 23... fxg6 {[%clk
0:02:42.6]} 24. Nf7 {[%clk 0:02:21.5]} 24... Rd7 {[%clk 0:02:42.5]} 25. Nh6+
{[%clk 0:02:22.2]} 25... Kh8 {[%clk 0:02:43.9]} 26. h4 {[%clk 0:02:22.2]} 26...
Ne6 {[%clk 0:02:40.1]} 27. Rf6 {[%clk 0:02:22.7]} 27... Kg7 {[%clk 0:02:32.4]}
28. g5 {[%clk 0:02:23.7]} 28... Ree7 {[%clk 0:02:26.4]} 29. Ref1 {[%clk
0:02:23.6]} 29... c5 {[%clk 0:02:25.1]} 30. d5 {[%clk 0:02:20.7]} 30... Nc7
{[%clk 0:02:14.7]} 31. d6 {[%clk 0:02:20.8]} 31... Re6 {[%clk 0:02:10.5]} 32.
Rf7+ {[%clk 0:02:20.7]} 1-0

[Event "*** Titled Tuesday 3|2 Blitz"]
[Site "Chess.com"]
[Date "2015.09.01"]
[Round "3"]
[White "Tomsel"]
[Black "Boryboy"]
[Result "0-1"]
[WhiteElo "2291"]
[BlackElo "2481"]
[TimeControl "180+2"]
[EndTime "11:29:24 PDT"]
[Termination "Boryboy won by resignation"]

1. d4 {[%clk 0:03:00.2]} 1... e6 {[%clk 0:03:00.7]} 2. Bf4 {[%clk 0:03:00.6]}
2... Nf6 {[%clk 0:02:59.6]} 3. e3 {[%clk 0:03:00.7]} 3... b6 {[%clk 0:02:53.3]}
4. Nf3 {[%clk 0:02:49.2]} 4... Bb7 {[%clk 0:02:54.4]} 5. Bd3 {[%clk 0:02:41.4]}
5... Be7 {[%clk 0:02:54.8]} 6. O-O {[%clk 0:02:12.5]} 6... d6 {[%clk 0:02:55.1]}
7. a4 {[%clk 0:02:08]} 7... Nh5 {[%clk 0:02:55]} 8. a5 {[%clk 0:01:55.6]} 8...
Nxf4 {[%clk 0:02:55.3]} 9. exf4 {[%clk 0:01:54]} 9... bxa5 {[%clk 0:02:53.9]}
10. Rxa5 {[%clk 0:01:53.3]} 10... h6 {[%clk 0:02:53.4]} 11. c3 {[%clk
0:01:49.3]} 11... O-O {[%clk 0:02:50.1]} 12. Nbd2 {[%clk 0:01:43.7]} 12... Nd7
{[%clk 0:02:48.7]} 13. Bb1 {[%clk 0:01:26.9]} 13... Nf6 {[%clk 0:02:46.9]} 14.
Qc2 {[%clk 0:01:25.6]} 14... c5 {[%clk 0:02:47.7]} 15. dxc5 {[%clk 0:01:21.8]}
15... Qxa5 {[%clk 0:02:48]} 16. cxd6 {[%clk 0:01:15.3]} 16... Bxd6 {[%clk
0:02:49.2]} 17. Nc4 {[%clk 0:01:06]} 17... Qc5 {[%clk 0:02:43.9]} 18. Nfe5
{[%clk 0:01:05.8]} 18... Be4 {[%clk 0:02:41.9]} 19. Qe2 {[%clk 0:01:00.2]} 19...
Bxb1 {[%clk 0:02:42.5]} 20. Rxb1 {[%clk 0:01:02.1]} 20... Bxe5 {[%clk 0:02:41]}
21. Nxe5 {[%clk 0:01:00.8]} 21... Rad8 {[%clk 0:02:41.2]} 22. h3 {[%clk
0:01:01]} 22... Qd5 {[%clk 0:02:40.2]} 23. Re1 {[%clk 0:00:58.4]} 23... Qd2
{[%clk 0:02:40.1]} 0-1

[Event "*** Titled Tuesday 3|2 Blitz"]
[Site "Chess.com"]
[Date "2015.09.01"]
[Round "3"]
[White "Mornar1951"]
[Black "jkidjr22"]
[Result "1-0"]
[WhiteElo "2488"]
[BlackElo "2271"]
[TimeControl "180+2"]
[EndTime "11:29:37 PDT"]
[Termination "Mornar1951 won by resignation"]

1. Nf3 {[%clk 0:03:01.9]} 1... b6 {[%clk 0:02:59.6]} 2. g3 {[%clk 0:03:00.4]}
2... Bb7 {[%clk 0:03:00.5]} 3. Bg2 {[%clk 0:03:02.3]} 3... e6 {[%clk 0:03:02]}
4. O-O {[%clk 0:03:02.6]} 4... Nf6 {[%clk 0:03:03.6]} 5. c4 {[%clk 0:03:03.4]}
5... Be7 {[%clk 0:03:03.4]} 6. Nc3 {[%clk 0:03:05]} 6... O-O {[%clk 0:03:04.1]}
7. b3 {[%clk 0:03:05]} 7... d5 {[%clk 0:03:04.7]} 8. Bb2 {[%clk 0:03:02.1]} 8...
Nbd7 {[%clk 0:03:05.3]} 9. e3 {[%clk 0:03:01.1]} 9... Rc8 {[%clk 0:03:04.1]} 10.
Rc1 {[%clk 0:02:59.2]} 10... Re8 {[%clk 0:03:04.6]} 11. d4 {[%clk 0:02:56.8]}
11... Bf8 {[%clk 0:03:03.8]} 12. Qe2 {[%clk 0:02:56.5]} 12... c5 {[%clk
0:03:00.9]} 13. Rfd1 {[%clk 0:02:57.5]} 13... Qc7 {[%clk 0:02:57.5]} 14. dxc5
{[%clk 0:02:53.6]} 14... Nxc5 {[%clk 0:02:17.2]} 15. cxd5 {[%clk 0:02:51.4]}
15... exd5 {[%clk 0:02:17.6]} 16. b4 {[%clk 0:02:49.5]} 16... Nce4 {[%clk
0:02:03.4]} 17. Nxe4 {[%clk 0:02:46.9]} 17... dxe4 {[%clk 0:02:01.9]} 18. Rxc7
{[%clk 0:02:47]} 18... exf3 {[%clk 0:02:03.3]} 19. Bxf3 {[%clk 0:02:46.4]} 19...
Bxf3 {[%clk 0:01:56.9]} 20. Qxf3 {[%clk 0:02:36.2]} 20... Rxc7 {[%clk 0:01:57]}
21. Bxf6 {[%clk 0:02:35.5]} 21... gxf6 {[%clk 0:01:58.5]} 22. Rd7 {[%clk
0:02:25.7]} 22... Rxd7 {[%clk 0:01:48.5]} 23. Qg4+ {[%clk 0:02:26.1]} 23... Kh8
{[%clk 0:01:50.4]} 24. Qxd7 {[%clk 0:02:26.6]} 24... Re7 {[%clk 0:01:52.1]} 25.
Qc8 {[%clk 0:02:20.7]} 25... Kg7 {[%clk 0:01:51.4]} 26. a3 {[%clk 0:02:11.1]}
26... a5 {[%clk 0:01:47.6]} 27. bxa5 {[%clk 0:02:06.9]} 27... bxa5 {[%clk
0:01:48.4]} 28. Qg4+ {[%clk 0:02:07.5]} 28... Kh8 {[%clk 0:01:43.8]} 29. Qf5
{[%clk 0:02:08.4]} 1-0

[Event "*** Titled Tuesday 3|2 Blitz"]
[Site "Chess.com"]
[Date "2015.09.01"]
[Round "3"]
[White "MFBerna"]
[Black "WanderingPuppet"]
[Result "1-0"]
[WhiteElo "2132"]
[BlackElo "2161"]
[TimeControl "180+2"]
[EndTime "11:29:54 PDT"]
[Termination "MFBerna won by checkmate"]

1. e4 {[%clk 0:03:01.9]} 1... c5 {[%clk 0:03:00.9]} 2. Nf3 {[%clk 0:03:00.7]}
2... d6 {[%clk 0:03:01.8]} 3. d4 {[%clk 0:02:57.3]} 3... cxd4 {[%clk 0:03:03.7]}
4. Nxd4 {[%clk 0:02:54.9]} 4... Nf6 {[%clk 0:03:04.4]} 5. Nc3 {[%clk 0:02:54.1]}
5... a6 {[%clk 0:03:05.8]} 6. Be2 {[%clk 0:02:55.4]} 6... e6 {[%clk 0:03:07.4]}
7. O-O {[%clk 0:02:55.4]} 7... Qc7 {[%clk 0:03:09.3]} 8. f4 {[%clk 0:02:55.8]}
8... Be7 {[%clk 0:03:11.2]} 9. Kh1 {[%clk 0:02:56.7]} 9... O-O {[%clk
0:03:12.9]} 10. Qe1 {[%clk 0:02:53.9]} 10... Nc6 {[%clk 0:03:14.5]} 11. Be3
{[%clk 0:02:54.4]} 11... Nxd4 {[%clk 0:03:15.5]} 12. Bxd4 {[%clk 0:02:55]} 12...
b5 {[%clk 0:03:17.4]} 13. Bd3 {[%clk 0:02:54.2]} 13... Bb7 {[%clk 0:03:13.2]}
14. Qg3 {[%clk 0:02:52.9]} 14... g6 {[%clk 0:03:13.5]} 15. Rae1 {[%clk
0:02:48.3]} 15... b4 {[%clk 0:03:13.9]} 16. Nd1 {[%clk 0:02:47.2]} 16... Rfe8
{[%clk 0:03:07.9]} 17. f5 {[%clk 0:02:48.4]} 17... e5 {[%clk 0:03:02.3]} 18. Bg1
{[%clk 0:02:41.9]} 18... Rac8 {[%clk 0:02:51.9]} 19. Nf2 {[%clk 0:02:41.4]}
19... Nh5 {[%clk 0:02:41.6]} 20. Qf3 {[%clk 0:02:39.6]} 20... Qd8 {[%clk
0:02:20.8]} 21. Ng4 {[%clk 0:02:39.4]} 21... Nf4 {[%clk 0:02:09.2]} 22. Be3
{[%clk 0:02:33.9]} 22... gxf5 {[%clk 0:02:00.8]} 23. Nh6+ {[%clk 0:02:34.5]}
23... Kf8 {[%clk 0:01:56.8]} 24. Bxf4 {[%clk 0:02:26.1]} 24... exf4 {[%clk
0:01:57]} 25. Qh5 {[%clk 0:02:23.3]} 25... Kg7 {[%clk 0:01:52]} 26. Nxf5+ {[%clk
0:02:17.8]} 26... Kf6 {[%clk 0:01:42.1]} 27. Qh6+ {[%clk 0:02:11]} 27... Ke5
{[%clk 0:01:42.4]} 28. Qxf4+ {[%clk 0:02:08.5]} 28... Kf6 {[%clk 0:01:42.5]} 29.
Nxe7+ {[%clk 0:01:48.9]} 29... Kxe7 {[%clk 0:01:44.4]} 30. Qxf7# {[%clk
0:01:48.4]} 1-0

[Event "*** Titled Tuesday 3|2 Blitz"]
[Site "Chess.com"]
[Date "2015.09.01"]
[Round "3"]
[White "joppie2"]
[Black "Krutoy123"]
[Result "1-0"]
[WhiteElo "2326"]
[BlackElo "2191"]
[TimeControl "180+2"]
[EndTime "11:30:59 PDT"]
[Termination "joppie2 won by resignation"]

1. e4 {[%clk 0:03:01.9]} 1... c5 {[%clk 0:02:54]} 2. Nf3 {[%clk 0:03:01.7]} 2...
e6 {[%clk 0:02:55.5]} 3. g3 {[%clk 0:03:01.8]} 3... Nc6 {[%clk 0:02:52.1]} 4.
Bg2 {[%clk 0:03:00.9]} 4... Nf6 {[%clk 0:02:51.8]} 5. Qe2 {[%clk 0:03:00.8]}
5... d6 {[%clk 0:02:51.6]} 6. O-O {[%clk 0:03:01.5]} 6... Be7 {[%clk 0:02:50.9]}
7. c3 {[%clk 0:03:03]} 7... O-O {[%clk 0:02:51.9]} 8. d4 {[%clk 0:03:04.5]} 8...
cxd4 {[%clk 0:02:52.5]} 9. cxd4 {[%clk 0:03:06.4]} 9... d5 {[%clk 0:02:53.8]}
10. e5 {[%clk 0:03:07.7]} 10... Ne4 {[%clk 0:02:55]} 11. Nbd2 {[%clk 0:03:09.1]}
11... Nxd2 {[%clk 0:02:53.5]} 12. Bxd2 {[%clk 0:03:11]} 12... Bb4 {[%clk
0:02:54.4]} 13. Bxb4 {[%clk 0:03:08.5]} 13... Nxb4 {[%clk 0:02:56.3]} 14. h4
{[%clk 0:03:09.1]} 14... h6 {[%clk 0:02:57.3]} 15. Rfc1 {[%clk 0:03:09.6]} 15...
Bd7 {[%clk 0:02:54.2]} 16. Qd2 {[%clk 0:03:09.9]} 16... Nc6 {[%clk 0:02:53.7]}
17. Bf1 {[%clk 0:03:11.4]} 17... Rc8 {[%clk 0:02:54.6]} 18. Rc3 {[%clk 0:03:10]}
18... Qb6 {[%clk 0:02:49.2]} 19. Rb3 {[%clk 0:03:09.9]} 19... Qc7 {[%clk
0:02:47.6]} 20. Rc1 {[%clk 0:03:07.4]} 20... Qb8 {[%clk 0:02:47.3]} 21. Bd3
{[%clk 0:03:04.3]} 21... Ne7 {[%clk 0:02:36.8]} 22. Re1 {[%clk 0:03:02.7]} 22...
Ba4 {[%clk 0:02:34.2]} 23. Ra3 {[%clk 0:03:00.3]} 23... Bd7 {[%clk 0:02:35.2]}
24. Bb1 {[%clk 0:02:59.5]} 24... Bb5 {[%clk 0:02:36.3]} 25. Qb4 {[%clk 0:03:00]}
25... b6 {[%clk 0:01:45.1]} 26. Qxb5 {[%clk 0:02:56.3]} 26... Nc6 {[%clk
0:01:43.4]} 27. Qd3 {[%clk 0:02:56.4]} 27... g6 {[%clk 0:01:44.7]} 28. h5 {[%clk
0:02:56]} 28... Ne7 {[%clk 0:01:46.3]} 29. Nh4 {[%clk 0:02:54.6]} 29... Kg7
{[%clk 0:01:47.2]} 30. hxg6 {[%clk 0:02:55.8]} 30... f5 {[%clk 0:01:46]} 31.
exf6+ {[%clk 0:02:55.4]} 31... Rxf6 {[%clk 0:01:47.3]} 32. Qe2 {[%clk
0:02:53.2]} 32... Rcf8 {[%clk 0:01:47.1]} 33. Re3 {[%clk 0:02:48.7]} 33... Nc6
{[%clk 0:01:41.9]} 34. Rxe6 {[%clk 0:02:47.2]} 34... Nxd4 {[%clk 0:01:32.1]} 35.
Re7+ {[%clk 0:02:48]} 35... Kg8 {[%clk 0:01:32.5]} 36. Qd3 {[%clk 0:02:40.3]}
36... Rxf2 {[%clk 0:00:33.3]} 37. g7 {[%clk 0:02:40.3]} 1-0